bitfinex/quotes_SOLUSD_20220228
["timestamp","ask_amount","ask_price","bid_price","bid_amount"]
[1646045402381,7.07992809,90.105,90.022,2.74678921]
[1646045402782,117.67992809,90.105,90.022,2.74678921]
[1646045402981,7.07992809,90.105,90.022,2.74678921]
[1646045407887,117.67992809,90.105,90.022,2.74678921]
[1646045408088,1.88409948,90.104,90.022,2.74678921]
[1646045408287,1.88409948,90.104,90.021,76.74256736]
[1646045408688,110.6,90.103,90.007,2.74678921]
[1646045408890,1.89283918,90.102,90.005,23.0329]
[1646045409091,110.6,90.099,90.005,23.0329]
[1646045409289,1.60388985,90.098,90.005,23.0329]
[1646045409488,110.6,90.097,90.005,23.0329]
[1646045409687,1.92805707,90.096,90.006,49.23737684]
[1646045410088,110.6,90.094,90.006,49.23737684]
[1646045410287,1.73720754,90.093,90.006,49.23737684]
[1646045411390,110.6,90.089,90.006,49.23737684]
[1646045411592,110.6,90.087,90.006,49.23737684]
[1646045411791,1.75774823,90.086,90.006,49.23737684]
[1646045413592,1.75774823,90.086,89.979,2.74678921]
[1646045413890,1.75774823,90.086,89.97,23.7912]
[1646045413891,1.81453273,90.084,89.97,23.7912]
[1646045414494,110.6,90.069,89.971,47.90501135]
[1646045414694,110.6,90.065,89.971,47.90501135]
[1646045415095,110.6,90.059,89.971,47.90501135]
[1646045415297,1.88810391,90.058,89.971,47.90501135]
[1646045415900,16.01,90.06,89.971,47.90501135]
[1646045415901,110.6,90.056,89.971,47.90501135]
[1646045416098,1.59313275,90.055,89.971,47.90501135]
[1646045427013,1.59313275,90.055,89.955,24.2586]
[1646045427214,1.59313275,90.055,89.949,2.74678921]
[1646045427410,110.6,90.053,89.938,23.7589]
[1646045427610,110.6,90.053,89.92,13.72532969]
[1646045427611,16.01,90.04,89.92,13.72532969]
[1646045427812,160.0289,90.039,89.921,50.14619322]
[1646045428010,110.6,90.037,89.921,50.14619322]
[1646045428210,1.57868503,90.036,89.921,50.14619322]
[1646045428411,110.6,90.035,89.921,50.14619322]
[1646045428611,110.6,90.019,89.921,50.14619322]
[1646045428812,110.6,90.017,89.922,24.5854]
[1646045429014,1.78661305,90.016,89.922,24.5854]
[1646045429613,1.78661305,90.016,89.922,47.3787547]
[1646045430812,1.78661305,90.016,89.922,24.5854]
[1646045431317,1.78661305,90.016,89.922,27.33218921]
[1646045432520,2.07279525,90.038,89.923,135.55743138]
[1646045432719,25.85889525,90.038,89.924,2.55142889]
[1646045432920,2.05837336,90.037,89.924,138.6915728]
[1646045433119,2.05837336,90.037,89.924,153.04731582]
[1646045433321,23.7861,90.038,89.926,110.6]
[1646045433520,23.7861,90.038,89.941,110.6]
[1646045433521,3.54067835,90.037,89.941,110.6]
[1646045433720,3.54067835,90.037,89.943,110.6]
[1646045433920,23.7861,90.038,89.943,110.6]
[1646045434320,23.7861,90.038,89.945,110.6]
[1646045434723,23.7861,90.038,89.946,39.89588693]
[1646045434921,23.7861,90.038,89.96,16.01]
[1646045435125,23.7861,90.038,89.961,50.14619322]
[1646045435322,32.4676116,90.047,89.961,52.89298243]
[1646045435522,1.61194754,90.046,89.962,23.0395]
[1646045435722,1.61194754,90.046,89.962,25.78628921]
[1646045436024,1.61194754,90.046,89.963,2.74678921]
[1646045436422,112.21194754,90.046,89.963,2.74678921]
[1646045436621,1.83199571,90.045,89.962,23.0395]
[1646045436822,110.6,90.043,89.962,23.0395]
[1646045437023,1.80886201,90.042,89.962,23.0395]
[1646045437622,16.01,90.04,89.962,23.0395]
[1646045437823,112.4186651,90.039,89.961,50.14619322]
[1646045438022,1.59069646,90.038,89.961,50.14619322]
[1646045442248,1.59069646,90.038,89.962,24.0372]
[1646045447252,1.59069646,90.038,89.962,32.3472]
[1646045447454,1.59069646,90.038,89.963,2.74678921]
[1646045447654,1.59069646,90.038,89.962,32.3472]
[1646045448255,1.59069646,90.038,89.962,24.0372]
[1646045450162,1.59069646,90.038,89.932,2.74678921]
[1646045450356,112.58626424,90.029,89.862,2.46857783]
[1646045450558,2.01400917,90.028,89.917,2.74678921]
[1646045450755,110.6,90.026,89.917,2.74678921]
[1646045450960,1.51020365,90.025,89.917,2.74678921]
[1646045451157,1.51020365,90.025,89.918,60.02495607]
[1646045451358,1.51020365,90.025,89.919,24.8772]
[1646045453457,1.51020365,90.025,89.919,41.1955]
[1646045455361,1.51020365,90.025,89.919,24.8772]
[1646045455763,1.51020365,90.025,89.92,126.61]
[1646045455962,1.51020365,90.025,89.92,133.28]
[1646045456363,1.51020365,90.025,89.921,2.74678921]
[1646045456964,1.51020365,90.025,89.922,110.6]
[1646045457165,9.27810434,90.054,89.921,69.17678921]
[1646045457166,25.4393808,90.042,89.926,110.6]
[1646045457364,23.5883,90.042,89.931,110.6]
[1646045457564,1.85830954,90.041,89.931,110.6]
[1646045457968,1.85830954,90.041,89.933,110.6]
[1646045458167,1.95201567,90.04,89.933,110.6]
[1646045458465,1.95201567,90.04,89.934,2.74678921]
[1646045459868,110.6,90.038,89.934,2.74678921]
[1646045460069,1.82684612,90.037,89.934,2.74678921]
[1646045460869,8.6066289,90.036,89.932,22.8175]
[1646045461069,110.6,90.029,89.932,22.8175]
[1646045461268,1.60841193,90.028,89.932,22.8175]
[1646045461669,110.6,90.026,89.932,22.8175]
[1646045461868,2.01099738,90.025,89.932,22.8175]
[1646045466176,2.01099738,90.025,89.844,110.6]
[1646045466378,110.6,90.019,89.881,23.7515]
[1646045466575,1.68831318,90.018,89.881,23.7515]
[1646045467176,110.6,90.016,89.883,110.6]
[1646045467376,1.71676453,90.015,89.883,110.6]
[1646045467577,1.71676453,90.015,89.884,132.9136519]
[1646045467776,1.71676453,90.015,89.884,155.74710357]
[1646045467976,110.6,90.013,89.886,110.6]
[1646045468177,2.02510922,90.012,89.9,16.01]
[1646045468379,2.02510922,90.012,89.901,46.8351]
[1646045469179,2.02510922,90.012,89.902,110.6]
[1646045469580,2.02510922,90.012,89.904,110.6]
[1646045469984,2.02510922,90.012,89.905,132.91024151]
[1646045470180,2.02510922,90.012,89.92,16.01]
[1646045470383,2.02510922,90.012,89.922,110.6]
[1646045472405,2.02510922,90.012,89.921,82.09329236]
[1646045472604,32.70040652,90.011,89.921,82.09329236]
[1646045473004,2.00925674,90.01,89.921,82.09329236]
[1646045473610,2.00925674,90.01,89.922,133.43345167]
[1646045474005,2.00925674,90.01,89.924,110.6]
[1646045474304,1.80048338,90.04,89.926,110.6]
[1646045474504,16.4342,90.114,89.941,110.6]
[1646045474505,1.68726752,90.066,89.941,110.6]
[1646045474704,1.85589491,90.038,89.95,16.01]
[1646045474909,23.6385,90.038,89.96,16.01]
[1646045475106,1.72324476,90.037,89.97,16.01]
[1646045481017,110.6,90.064,89.97,16.01]
[1646045481018,1.50566939,90.063,89.97,16.01]
[1646045481217,1.50566939,90.063,89.971,24.2093]
[1646045481816,110.6,90.061,89.971,24.2093]
[1646045482021,1.70498829,90.06,89.971,24.2093]
[1646045483620,1.70498829,90.06,89.972,110.6]
[1646045483820,1.70498829,90.06,89.972,118.09]
[1646045484019,1.70498829,90.06,89.972,7.49]
[1646045484318,1.70498829,90.06,89.973,2.74678921]
[1646045485424,1.70498829,90.06,89.971,24.2093]
[1646045487322,1.86980629,90.059,89.971,24.2093]
[1646045488325,1.86980629,90.059,89.942,23.4287]
[1646045488524,126.61,90.06,89.943,24.6457]
[1646045488525,110.6,90.057,89.943,24.6457]
[1646045488725,2.05979405,90.056,89.943,24.6457]
[1646045488926,110.6,90.055,89.943,24.6457]
[1646045489129,110.6,90.053,89.943,24.6457]
[1646045489328,2.03305983,90.052,89.943,24.6457]
[1646045489728,110.6,90.049,89.943,24.6457]
[1646045489927,1.89298661,90.048,89.943,24.6457]
[1646045493631,110.6,90.047,89.943,24.6457]
[1646045493831,2.02040081,90.046,89.943,24.6457]
[1646045494032,112.6,90.035,89.943,24.6457]
[1646045494233,26.54502493,90.034,89.943,24.6457]
[1646045494433,1.67735285,90.033,89.943,24.6457]
[1646045494832,112.27735285,90.033,89.943,24.6457]
[1646045495033,1.75685445,90.032,89.943,24.6457]
[1646045497339,1.75685445,90.032,89.95,16.01]
[1646045497537,1.75685445,90.032,89.952,47.22027874]
[1646045498739,112.6,90.035,89.952,47.22027874]
[1646045498938,112.6,90.035,89.953,110.6]
[1646045499138,112.6,90.035,89.953,132.93509594]
[1646045499341,112.6,90.035,89.954,2.74678921]
[1646045499538,112.6,90.035,89.955,110.6]
[1646045499739,112.6,90.035,89.957,110.6]
[1646045499940,112.6,90.035,89.97,16.01]
[1646045501942,112.6,90.035,89.971,2.74678921]
[1646045502142,112.6,90.035,89.97,16.01]
[1646045506165,22.7508,90.034,89.97,16.01]
[1646045506368,1.53020585,90.033,89.956,22.8938]
[1646045512772,1.53020585,90.033,89.96,16.01]
[1646045517176,110.6,90.033,89.96,16.01]
[1646045517378,1.70228264,90.032,89.956,22.8938]
[1646045524389,1.70228264,90.032,89.952,44.47348953]
[1646045524889,110.6,90.03,89.952,44.47348953]
[1646045525093,1.78804114,90.029,89.952,44.47348953]
[1646045526591,110.6,90.027,89.952,44.47348953]
[1646045526793,1.62222524,90.026,89.952,44.47348953]
[1646045527994,110.6,90.026,89.952,44.47348953]
[1646045528194,1.63715876,90.025,89.952,44.47348953]
[1646045530598,2.07015255,90.032,89.952,44.47348953]
[1646045571406,1.99064885,90.032,89.945,2.74678921]
[1646045571807,1.99064885,90.032,89.946,110.6]
[1646045572005,112.6,90.035,89.961,110.6]
[1646045572405,25.25998731,90.06,89.96,16.01]
[1646045572406,23.3783,90.06,89.965,177.03]
[1646045572607,112.6,90.07,89.981,110.6]
[1646045572806,1.90938373,90.069,89.981,110.6]
[1646045573404,1.90938373,90.069,89.98,16.01]
[1646045573405,1.85904325,90.067,89.983,110.6]
[1646045573606,1.85904325,90.067,89.983,118.56]
[1646045573805,38.40494579,90.068,89.983,118.56]
[1646045574707,38.40494579,90.068,89.983,110.6]
[1646045575307,38.40494579,90.068,89.985,177.03]
[1646045577109,38.40494579,90.068,89.984,2.42459988]
[1646045577307,38.40494579,90.068,89.982,52.82820516]
[1646045577308,38.40494579,90.068,89.987,110.6]
[1646045577509,1.80481686,90.067,90.0,16.01]
[1646045583613,23.4325,90.067,90.0,16.01]
[1646045583814,2.00674422,90.066,90.0,16.01]
[1646045584013,2.00674422,90.066,90.001,110.6]
[1646045584213,112.6,90.07,90.001,110.6]
[1646045584416,112.6,90.07,90.003,110.6]
[1646045585115,112.6,90.07,90.003,137.4053031]
[1646045586215,112.6,90.07,90.003,110.6]
[1646045586417,112.6,90.07,90.004,110.6]
[1646045587521,112.6,90.07,90.001,110.6]
[1646045587921,112.6,90.07,90.0,216.17]
[1646045588123,2.06471466,90.069,90.0,216.17]
[1646045591023,2.06471466,90.069,90.001,110.6]
[1646045593543,2.06471466,90.069,90.001,133.7987]
[1646045594647,1.73503824,90.068,90.001,133.7987]
[1646045598449,1.73503824,90.068,90.001,23.1987]
[1646045600251,1.73503824,90.068,90.002,110.6]
[1646045600452,1.73503824,90.068,90.001,23.1987]
[1646045603054,1.73503824,90.068,90.002,110.6]
[1646045603253,3.932588,90.068,90.002,138.73725481]
[1646045603453,3.932588,90.068,90.003,2.74678921]
[1646045603655,112.6,90.07,90.003,2.74678921]
[1646045604055,112.6,90.07,90.003,2.78361621]
[1646045604255,116.532588,90.07,90.003,2.78361621]
[1646045604554,116.532588,90.07,90.006,110.6]
[1646045604754,116.532588,90.07,90.021,110.6]
[1646045604958,120.956749,90.07,90.021,110.6]
[1646045605157,8.356749,90.07,90.031,110.6]
[1646045605557,76.4236,90.081,90.032,49.60037673]
[1646045605956,1.51769512,90.08,90.032,49.60037673]
[1646045606158,76.4236,90.081,90.032,49.60037673]
[1646045606557,13.13600843,90.081,90.035,110.6]
[1646045606757,13.13600843,90.081,90.037,110.6]
[1646045606957,13.13600843,90.081,90.051,110.6]
[1646045607158,5.13987162,90.081,90.052,28.493336]
[1646045607358,112.6,90.103,90.057,110.6]
[1646045607560,112.6,90.103,90.07,16.01]
[1646045607758,112.6,90.103,90.06,16.01]
[1646045607959,1.68991095,90.102,90.06,16.01]
[1646045608159,1.68991095,90.102,90.045,24.4147]
[1646045608358,1.68991095,90.102,90.05,16.01]
[1646045608359,43.55163842,90.101,90.05,16.01]
[1646045608561,1.57332792,90.1,90.05,16.01]
[1646045609363,1.57332792,90.1,90.052,0.161382]
[1646045609561,23.2606,90.1,90.052,0.161382]
[1646045609762,1.60743192,90.099,90.052,0.161382]
[1646045615469,1.60743192,90.099,90.03,16.01]
[1646045623477,2.06601441,90.098,90.01,16.01]
[1646045623678,2.06601441,90.098,90.003,24.4954]
[1646045624479,2.06601441,90.098,90.004,23.76340378]
[1646045631489,2.06601441,90.098,90.006,110.6]
[1646045631687,2.06601441,90.098,90.021,2.24157811]
[1646045633900,2.06601441,90.098,90.022,24.323]
[1646045634902,2.06601441,90.098,90.021,2.24157811]
[1646045635103,2.06601441,90.098,90.005,22.9252]
[1646045636305,2.06601441,90.098,90.006,23.8277661]
[1646045641912,2.06601441,90.098,90.01,16.01]
[1646045642112,2.06601441,90.098,89.981,2.74678921]
[1646045642312,136.51570213,90.097,89.975,23.6026]
[1646045642511,1.67702631,90.096,89.975,23.6026]
[1646045642811,113.03531248,90.095,89.975,23.6026]
[1646045643111,1.85819553,90.088,89.976,48.05044828]
[1646045643310,110.6,90.086,89.976,48.05044828]
[1646045643510,1.53031387,90.085,89.98,16.01]
[1646045643713,1.73774517,90.083,89.98,16.01]
[1646045648420,110.6,90.062,89.976,22.65998268]
[1646045648619,110.6,90.058,89.976,22.65998268]
[1646045648818,1.96767095,90.057,89.976,22.65998268]
[1646045649418,1.96767095,90.057,89.98,16.01]
[1646045655621,1.96767095,90.057,89.981,110.6]
[1646045655822,47.8192,90.061,89.981,146.81725481]
[1646045656022,47.8192,90.061,89.983,110.6]
[1646045656421,47.8192,90.061,89.985,110.6]
[1646045656822,47.8192,90.061,89.987,110.6]
[1646045657022,47.8192,90.061,90.001,110.6]
[1646045657223,47.8192,90.061,90.002,3.34499921]
[1646045657722,47.8192,90.061,90.002,6.09178842]
[1646045657925,47.8192,90.061,90.003,2.74678921]
[1646045658323,47.8192,90.061,90.002,3.34499921]
[1646045665530,2.07012657,90.06,89.981,23.6025]
[1646045666532,2.07012657,90.06,89.981,46.19268259]
[1646045666732,1.71244631,90.059,89.981,23.6025]
[1646045667533,1.71244631,90.059,89.974,23.0919]
[1646045667735,1.71244631,90.059,89.963,2.78415747]
[1646045669636,110.6,90.058,89.963,2.78415747]
[1646045669835,1.54337419,90.057,89.94,39.2478]
[1646045670035,110.6,90.056,89.94,39.2478]
[1646045670234,1.5210279,90.055,89.94,39.2478]
[1646045670835,110.6,90.054,89.941,25.07778716]
[1646045671036,1.70214844,90.053,89.941,25.07778716]
[1646045671236,110.6,90.051,89.941,25.07778716]
[1646045671437,1.65062293,90.05,89.941,25.07778716]
[1646045671837,110.6,90.048,89.942,51.1557687]
[1646045672038,1.58088675,90.047,89.942,51.1557687]
[1646045672639,1.58088675,90.047,89.943,25.7653031]
[1646045675241,1.58088675,90.047,89.941,25.07778716]
[1646045676047,1.58088675,90.047,89.942,161.74710203]
[1646045676446,1.58088675,90.047,89.944,110.6]
[1646045676847,1.58088675,90.047,89.946,110.6]
[1646045677046,1.58088675,90.047,89.945,142.59246354]
[1646045677047,1.58088675,90.047,89.961,110.6]
[1646045677249,1.58088675,90.047,89.964,0.92719473]
[1646045677847,1.58088675,90.047,89.965,2.74678921]
[1646045678849,1.58088675,90.047,89.964,0.92719473]
[1646045679349,1.67563367,90.044,89.964,0.92719473]
[1646045688186,1.67563367,90.044,89.965,113.34678921]
[1646045688385,1.67563367,90.044,89.97,16.01]
[1646045702606,1.67563367,90.044,89.971,2.74678921]
[1646045703008,1.67563367,90.044,89.972,23.4603]
[1646045703406,112.6,90.063,89.973,110.6]
[1646045703605,112.6,90.063,89.974,69.3832926]
[1646045703807,112.6,90.063,89.977,110.6]
[1646045704008,65.71060861,90.063,89.99,216.17]
[1646045704205,112.6,90.086,90.001,177.03]
[1646045704406,112.6,90.086,90.002,2.96545048]
[1646045704609,112.6,90.086,90.011,177.03]
[1646045704811,112.6,90.122,90.012,2.82625019]
[1646045705013,112.6,90.122,90.022,3.01998946]
[1646045705413,112.6,90.122,90.024,177.03]
[1646045705614,112.6,90.122,90.027,2.67660598]
[1646045705812,112.6,90.122,90.041,110.6]
[1646045706012,112.6,90.122,90.041,116.4]
[1646045706211,112.6,90.122,90.042,2.74678921]
[1646045706412,112.6,90.122,90.043,110.6]
[1646045706611,112.6,90.122,90.043,146.28744407]
[1646045706811,112.6,90.122,90.044,2.74678921]
[1646045707011,112.6,90.122,90.045,110.6]
[1646045707212,112.6,90.122,90.06,16.01]
[1646045708931,1.4967385,90.121,90.06,16.01]
[1646045709131,1.4967385,90.121,90.046,16.2736]
[1646045710936,112.0967385,90.121,90.04,16.01]
[1646045711135,112.0967385,90.121,90.017,2.74678921]
[1646045711136,1.64510107,90.12,90.03,16.01]
[1646045712437,1.77318674,90.117,90.03,16.01]
[1646045712837,1.77318674,90.117,90.01,16.01]
[1646045713037,1.77318674,90.117,89.996,27.88525227]
[1646045713241,1.77318674,90.117,89.995,24.1225]
[1646045713242,52.85914138,90.086,89.995,24.1225]
[1646045713441,48.5195409,90.085,89.995,24.1225]
[1646045713640,1.80076628,90.084,89.995,24.1225]
[1646045713841,1.80076628,90.084,90.0,16.01]
[1646045714241,1.80076628,90.084,90.001,110.6]
[1646045714441,1.80076628,90.084,90.0,16.01]
[1646045714640,1.80076628,90.084,90.001,110.6]
[1646045714841,1.80076628,90.084,90.002,2.74678921]
[1646045716241,112.6,90.087,90.002,5.19700629]
[1646045716442,112.6,90.087,90.005,69.07493268]
[1646045716641,112.6,90.087,90.007,2.92165654]
[1646045716841,112.6,90.087,90.021,110.6]
[1646045717041,112.6,90.087,90.021,116.7]
[1646045717446,112.6,90.087,90.022,2.74678921]
[1646045718547,112.6,90.087,90.024,110.6]
[1646045718946,112.6,90.087,90.025,2.74678921]
[1646045719148,112.6,90.087,90.041,110.6]
[1646045719548,112.6,90.087,90.04,16.01]
[1646045721752,112.6,90.087,90.041,2.74678921]
[1646045721951,112.6,90.087,90.041,9.27678921]
[1646045722151,112.6,90.087,90.041,6.53]
[1646045727280,112.6,90.087,90.04,16.01]
[1646045728362,112.6,90.087,90.041,110.6]
[1646045728560,112.6,90.087,90.041,117.3]
[1646045728964,112.6,90.087,90.04,16.01]
[1646045729267,114.31207924,90.087,90.022,16.7695]
[1646045729460,46.1905132,90.086,90.022,16.7695]
[1646045730062,24.5626,90.085,90.022,16.7695]
[1646045731463,1.82060365,90.084,90.022,16.7695]
[1646045734368,1.82060365,90.084,90.023,110.6]
[1646045734566,112.6,90.087,90.023,110.6]
[1646045734788,112.6,90.087,90.023,113.34678921]
[1646045734988,112.6,90.087,90.024,2.74678921]
[1646045738690,1.85778777,90.086,90.022,16.7695]
[1646045738890,111.56579052,90.086,90.022,16.7695]
[1646045739090,1.48814962,90.085,89.958,17.0646]
[1646045739289,110.6,90.079,89.951,16.6359]
[1646045739490,110.6,90.079,89.959,10.0]
[1646045739491,1.8578963,90.078,89.959,10.0]
[1646045739692,2.81689761,90.078,89.959,10.0]
[1646045739894,1.60514666,90.076,89.959,10.0]
[1646045740090,1.60514666,90.076,89.96,110.6]
[1646045740289,0.95900131,90.075,89.96,179.28460024]
[1646045740492,0.95900131,90.075,89.96,68.68460024]
[1646045740691,0.95900131,90.075,89.96,16.01]
[1646045740892,1.45964084,90.072,89.961,23.2063]
[1646045741791,1.92479183,90.071,89.961,23.2063]
[1646045741994,110.6,90.069,89.961,23.2063]
[1646045742193,1.47026447,90.068,89.962,110.6]
[1646045742799,1.47026447,90.068,89.961,23.2063]
[1646045743395,1.7877879,90.067,89.961,23.2063]
[1646045747903,1.7877879,90.067,89.96,16.01]
[1646045749607,110.6,90.066,89.96,16.01]
[1646045749805,1.64540119,90.065,89.96,16.01]
[1646045750004,4.38540119,90.065,89.96,16.01]
[1646045750404,1.92479183,90.064,89.96,16.01]
[1646045751005,110.6,90.049,89.898,2.85963106]
[1646045751206,110.6,90.047,89.922,24.1194]
[1646045751408,1.55260489,90.046,89.912,11.6122897]
[1646045751606,3.34039279,90.046,89.904,24.0645]
[1646045751804,127.04237795,90.045,89.904,24.0645]
[1646045752005,1.5352404,90.044,89.904,24.0645]
[1646045752206,110.6,90.029,89.904,24.0645]
[1646045752507,110.6,90.027,89.904,24.0645]
[1646045752705,1.72706539,90.026,89.904,24.0645]
[1646045752905,1.72706539,90.026,89.909,26.90386392]
[1646045753105,4.46706539,90.026,89.909,26.90386392]
[1646045753506,1.7877879,90.025,89.904,24.0645]
[1646045753910,1.7877879,90.025,89.905,26.90386392]
[1646045754311,1.7877879,90.025,89.904,24.0645]
[1646045754912,112.3877879,90.025,89.904,24.0645]
[1646045755113,1.51031956,90.024,89.904,24.0645]
[1646045755311,112.43686507,90.019,89.904,24.0645]
[1646045755511,1.49509291,90.018,89.904,24.0645]
[1646045755914,3.41988474,90.018,89.869,24.03684392]
[1646045756113,1.43369826,90.015,89.869,24.03684392]
[1646045756313,110.6,90.013,89.862,134.5502]
[1646045756515,110.6,89.999,89.862,134.5502]
[1646045756815,110.6,89.995,89.862,134.5502]
[1646045757014,1.39227484,89.994,89.862,134.5502]
[1646045757215,110.6,89.979,89.862,134.5502]
[1646045757416,110.6,89.977,89.862,134.5502]
[1646045757618,1.61540833,89.976,89.862,134.5502]
[1646045758118,1.92479183,89.975,89.86,16.01]
[1646045758316,110.6,89.969,89.844,90.8599]
[1646045758516,110.6,89.969,89.85,16.01]
[1646045758717,3.19314189,89.968,89.85,16.01]
[1646045758919,3.19314189,89.968,89.851,110.6]
[1646045759718,1.70624779,89.965,89.852,134.5241]
[1646045759919,110.6,89.963,89.852,134.5241]
[1646045760120,1.3518894,89.962,89.852,134.5241]
[1646045761327,1.3518894,89.962,89.853,24.03684392]
[1646045761527,1.3518894,89.962,89.854,110.6]
[1646045761925,1.3518894,89.962,89.853,24.03684392]
[1646045761926,1.3518894,89.962,89.856,110.6]
[1646045762127,1.3518894,89.962,89.871,110.6]
[1646045763933,1.3518894,89.962,89.87,16.01]
[1646045764334,1.3518894,89.962,89.87,32.3368]
[1646045768753,1.3518894,89.962,89.871,110.6]
[1646045769052,1.3518894,89.962,89.875,177.03]
[1646045769252,24.8536,89.967,89.891,110.6]
[1646045769452,1.43190371,89.989,89.893,110.6]
[1646045769658,1.43190371,89.989,89.895,179.32554985]
[1646045769858,1.43190371,89.989,89.896,2.61631425]
[1646045770052,1.43190371,89.989,89.901,110.6]
[1646045770053,59.42828897,89.981,89.901,110.6]
[1646045770258,59.42828897,89.981,89.902,2.43187531]
[1646045770953,59.42828897,89.981,89.9,16.01]
[1646045771455,1.66351774,89.977,89.9,16.01]
[1646045771854,1.66351774,89.977,89.9,15.90737153]
[1646045772256,1.76155435,89.975,89.9,15.90737153]
[1646045774164,1.76155435,89.975,89.9,15.40737153]
[1646045778267,1.76155435,89.975,89.884,22.5575]
[1646045778268,1.45436056,89.974,89.884,22.5575]
[1646045781670,1.45436056,89.974,89.885,110.6]
[1646045781873,1.45436056,89.974,89.9,16.01]
[1646045782070,1.45436056,89.974,89.891,110.6]
[1646045783372,1.45436056,89.974,89.89,16.01]
[1646045789890,1.45436056,89.974,89.884,22.5575]
[1646045794090,23.3602,89.976,89.886,2.88847935]
[1646045794290,23.3602,89.976,89.9,16.01]
[1646045794911,80.54423051,89.976,89.9,16.01]
[1646045795508,1.62804842,89.975,89.9,32.7681]
[1646045799412,80.54423051,89.976,89.901,110.6]
[1646045799614,80.54423051,89.976,89.901,5.97]
[1646045799813,1.75591115,89.975,89.9,16.01]
[1646045800815,3.3207197,89.974,89.884,22.5575]
[1646045801015,110.6,89.973,89.884,22.5575]
[1646045801214,110.6,89.969,89.87,16.3268]
[1646045801415,1.75916816,89.968,89.871,22.6166]
[1646045805720,1.75916816,89.968,89.868,24.03684392]
[1646045805921,4.50595737,89.968,89.851,22.5545]
[1646045806118,4.50595737,89.968,89.852,23.542]
[1646045806519,1.75916816,89.968,89.853,22.23430813]
[1646045808123,1.75916816,89.968,89.854,110.6]
[1646045808322,1.75916816,89.968,89.854,133.63380299]
[1646045808525,1.75916816,89.968,89.856,110.6]
[1646045808722,1.75916816,89.968,89.861,110.6]
[1646045809122,1.83930074,89.975,89.862,25.94117884]
[1646045809326,1.83930074,89.975,89.864,2.89697364]
[1646045809724,1.83930074,89.975,89.866,110.6]
[1646045809925,1.83930074,89.975,89.881,110.6]
[1646045810126,1.83930074,89.975,89.883,110.6]
[1646045810625,1.83930074,89.975,89.885,110.6]
[1646045810824,1.83930074,89.975,89.9,16.01]
[1646045811025,1.83930074,89.975,89.9,24.34]
[1646045811433,1.83930074,89.975,89.901,22.23430813]
[1646045814853,1.83930074,89.975,89.901,45.97890813]
[1646045815353,1.83930074,89.975,89.901,52.86890813]
[1646045815553,1.83930074,89.975,89.902,22.23430813]
[1646045815854,23.3602,89.976,89.903,113.35243746]
[1646045816053,23.3602,89.976,89.904,2.619879]
[1646045816254,23.3602,89.976,89.903,110.6]
[1646045816454,23.3602,89.976,89.906,2.34805912]
[1646045816854,51.4264874,89.988,89.911,110.6]
[1646045817058,51.4264874,89.988,89.912,22.7178]
[1646045817456,51.4264874,89.988,89.913,22.23430813]
[1646045818254,23.7752,89.987,89.913,22.23430813]
[1646045819758,1.66464185,89.986,89.913,22.23430813]
[1646045819959,1.66464185,89.986,89.912,22.7178]
[1646045822461,51.95422931,89.985,89.912,22.7178]
[1646045823061,1.8028982,89.984,89.912,22.7178]
[1646045823862,1.8028982,89.984,89.913,22.27551179]
[1646045824066,1.8028982,89.984,89.913,28.37551179]
[1646045824665,1.8028982,89.984,89.914,22.27551179]
[1646045825765,1.8028982,89.984,89.913,22.27551179]
[1646045827171,23.7752,89.987,89.913,22.27551179]
[1646045827366,23.7752,89.987,89.913,30.19551179]
[1646045827567,23.7752,89.987,89.915,2.93411791]
[1646045827767,23.7752,89.987,89.93,16.01]
[1646045827967,23.7752,89.987,89.93,126.61]
[1646045828369,23.7752,89.987,89.931,22.27551179]